fUST/lending_fUST_20250203
["ID","MTS","AMOUNT","RATE_DAILY","PERIOD"]
[351481057,1738596645947,-372.56220049,0.00016575,2]
[351481059,1738596645957,-500.0,0.00016575,2]
[351481061,1738596645967,-500.81672919,0.00016575,2]
[351481064,1738596645977,-500.0,0.00016575,2]
[351481065,1738596645987,-547.40715514,0.00016575,2]
[351481067,1738596645996,-500.0,0.00016575,2]
[351481070,1738596646006,-500.0,0.00016575,2]
[351481072,1738596646017,-500.0,0.00016575,2]
[351481074,1738596646027,-500.0,0.00016575,2]
[351481076,1738596646036,-500.0,0.00016575,2]
[351481078,1738596646046,-500.0,0.00016575,2]
[351481080,1738596646056,-500.0,0.00016575,2]
[351481090,1738596646159,-500.0,0.00016575,2]
[351481092,1738596646170,-504.36582995,0.00016575,2]
[351481094,1738596646180,-490.32913366,0.00016575,2]
[351481096,1738596646191,-500.0,0.00016575,2]
[351481098,1738596646201,-500.0,0.00016575,2]
[351481100,1738596646211,-500.0,0.00016575,2]
[351481102,1738596646221,-500.0,0.00016575,2]
[351481104,1738596646230,-500.0,0.00016575,2]
[351481106,1738596646240,-502.59485842,0.00016575,2]
[351481108,1738596646249,-500.0,0.00016575,2]
[351481111,1738596646261,-500.0,0.00016575,2]
[351481114,1738596646271,-176.29711112,0.00016575,2]
[351481117,1738596646281,-500.0,0.00016575,2]
[351481120,1738596646291,-602.5,0.00016575,2]
[351481123,1738596646301,-500.0,0.00016575,2]
[351481126,1738596646314,-500.0,0.00016575,2]
[351481129,1738596646324,-500.0,0.00016575,2]
[351481132,1738596646334,-500.0,0.00016575,2]
[351481136,1738596646344,-1703.12,0.00016575,2]
[351481139,1738596646353,-500.0,0.00016575,2]
[351481142,1738596646363,-500.0,0.00016575,2]
[351481145,1738596646372,-500.0,0.00016575,2]
[351481148,1738596646382,-500.0,0.00016575,2]
[351481151,1738596646392,-889.81,0.00016575,2]
[351481154,1738596646402,-500.0,0.00016575,2]
[351481157,1738596646412,-503.62610359,0.00016575,2]
[351481160,1738596646422,-500.0,0.00016575,2]
[351481163,1738596646432,-500.0,0.00016575,2]
[351481166,1738596646442,-500.0,0.00016575,2]
[351481168,1738596646452,-151.0,0.00016575,2]
[351481171,1738596646462,-151.0,0.00016575,2]
[351481173,1738596646471,-500.0,0.00016575,2]
[351481176,1738596646481,-151.0,0.00016575,2]
[351481178,1738596646490,-235.112926,0.00016575,2]
[351481181,1738596646499,-115.8557926,0.00016575,2]
[351481212,1738596646687,-465.43489761,0.00016575,2]
[351481214,1738596646697,-500.0,0.00016575,2]
[351481217,1738596646707,-151.0,0.00016575,2]
[351481220,1738596646716,-226.163301,0.00016575,2]
[351481223,1738596646725,-500.0,0.00016575,2]
[351481225,1738596646734,-504.88227771,0.00016575,2]
[351481228,1738596646743,-352.38396261,0.00016575,2]
[351481231,1738596646755,-147.61603739,0.00016575,2]
[351481233,1738596646764,-122.74290876,0.00016575,2]
[351481258,1738596646902,-500.0,0.00016438,2]
[351481261,1738596646912,-503.3971516,0.00016438,2]
[351481264,1738596646921,-377.25709124,0.00016575,2]
[351481267,1738596646931,-151.0,0.00016575,2]
[351481269,1738596646940,-511.02676186,0.00016575,2]
[351481271,1738596646950,-500.0,0.00016575,2]
[351481273,1738596646960,-500.0,0.00016575,2]
[351481275,1738596646969,-510.14214987,0.00016575,2]
[351481277,1738596646979,-512.96027489,0.00016575,2]
[351481279,1738596646988,-500.0,0.00016575,2]
[351481281,1738596646998,-500.0,0.00016575,2]
[351481283,1738596647007,-500.0,0.00016575,2]
[351481285,1738596647017,-500.0,0.00016575,2]
[351481287,1738596647026,-500.0,0.00016575,2]
[351481289,1738596647041,-521.79327469,0.00016575,2]
[351481292,1738596647051,-500.0,0.00016575,2]
[351481294,1738596647063,-500.0,0.00016575,2]
[351481296,1738596647074,-613.93,0.00016575,2]
[351481299,1738596647084,-500.0,0.00016575,2]
[351481302,1738596647094,-500.0,0.00016575,2]
[351481303,1738596647104,-500.0,0.00016575,2]
[351481305,1738596647114,-521.86,0.00016575,2]
[351481307,1738596647123,-500.0,0.00016575,2]
[351481309,1738596647134,-500.0,0.00016575,2]
[351481311,1738596647144,-500.0,0.00016575,2]
[351481313,1738596647153,-500.0,0.00016575,2]
[351481315,1738596647163,-504.64596186,0.00016575,2]
[351481317,1738596647173,-500.0,0.00016575,2]
[351481319,1738596647183,-500.0,0.00016575,2]
[351481321,1738596647193,-500.0,0.00016575,2]
[351481323,1738596647202,-500.0,0.00016575,2]
[351481325,1738596647212,-500.93433336,0.00016575,2]
[351481327,1738596647222,-504.1573408,0.00016575,2]
[351481329,1738596647231,-490.5634252,0.00016575,2]
[351481331,1738596647241,-504.40620073,0.00016575,2]
[351481333,1738596647251,-500.0,0.00016575,2]
[351481335,1738596647261,-500.0,0.00016575,2]
[351481337,1738596647271,-500.0,0.00016575,2]
[351481339,1738596647280,-509.57619342,0.00016575,2]
[351481341,1738596647290,-500.0,0.00016575,2]
[351481343,1738596647299,-500.0,0.00016575,2]
[351481345,1738596647311,-500.0,0.00016575,2]
[351481347,1738596647320,-500.0,0.00016575,2]
[351481349,1738596647330,-500.0,0.00016575,2]
[351481351,1738596647340,-252.68,0.00016575,2]
[351481353,1738596647349,-500.0,0.00016575,2]
[351481355,1738596647360,-500.0,0.00016575,2]
[351481356,1738596647370,-472.08024253,0.00016575,2]
[351481359,1738596647380,-500.0,0.00016575,2]
[351481360,1738596647390,-500.0,0.00016575,2]
[351481362,1738596647400,-500.0,0.00016575,2]
[351481364,1738596647410,-169.93512392,0.00016575,2]
[351481366,1738596647419,-500.0,0.00016575,2]
[351481368,1738596647430,-500.0,0.00016575,2]
[351481370,1738596647439,-151.0,0.00016575,2]
[351481372,1738596647449,-151.0,0.00016575,2]
[351481374,1738596647459,-401.65789145,0.00016575,2]
[351481376,1738596647469,-597.13,0.00016575,2]
[351481378,1738596647479,-151.0,0.00016575,2]
[351481380,1738596647489,-151.0,0.00016575,2]
[351481382,1738596647498,-500.0,0.00016575,2]
[351481384,1738596647507,-500.0,0.00016575,2]
[351481386,1738596647517,-500.0,0.00016575,2]
[351481388,1738596647527,-500.0,0.00016575,2]
[351481390,1738596647537,-500.0,0.00016575,2]
[351481392,1738596647547,-500.0,0.00016575,2]
[351481394,1738596647556,-500.0,0.00016575,5]
[351481396,1738596647568,-723.46,0.00016575,2]
[351481397,1738596647578,-500.0,0.00016575,2]
[351481398,1738596647591,-500.0,0.00016575,2]
[351481399,1738596647601,-500.0,0.00016575,2]
[351481400,1738596647612,-228.8830891,0.00016575,2]
[351481401,1738596647623,-500.0,0.00016575,2]
[351481402,1738596647633,-504.08294231,0.00016575,2]
[351481403,1738596647642,-500.0,0.00016575,2]
[351481413,1738596647756,-500.0,0.00016575,2]
[351481415,1738596647767,-500.0,0.00016575,2]
[351481417,1738596647777,-376.77472556,0.00016575,2]
[351481419,1738596647786,-500.0,0.00016575,2]
[351481421,1738596647796,-500.0,0.00016575,2]
[351481424,1738596647807,-500.0,0.00016575,2]
[351481425,1738596647819,-500.0,0.00016575,2]
[351481428,1738596647830,-500.0,0.00016575,2]
[351481430,1738596647839,-500.0,0.00016575,2]
[351481432,1738596647850,-151.0,0.00016575,2]
[351481434,1738596647860,-151.0,0.00016575,2]
[351481436,1738596647870,-500.0,0.00016575,2]
[351481437,1738596647879,-500.0,0.00016575,2]
[351481438,1738596647889,-151.0,0.00016575,2]
[351481439,1738596647899,-151.0,0.00016575,2]
[351481440,1738596647908,-500.0,0.00016575,2]
[351481441,1738596647918,-500.0,0.00016575,2]
[351481442,1738596647928,-500.0,0.00016575,2]
[351481443,1738596647938,-500.0,0.00016575,2]
[351481444,1738596647948,-151.0,0.00016575,2]
[351481445,1738596647957,-194.830472,0.00016575,2]
[351481446,1738596647967,-380.98109731,0.00016575,2]
[351481447,1738596647977,-500.0,0.00016575,2]
[351481448,1738596647986,-500.0,0.00016575,2]
[351481449,1738596647996,-2169.86,0.00016575,2]
[351481450,1738596648005,-500.0,0.00016575,2]
[351481451,1738596648015,-445.90231529,0.00016575,2]
[351481452,1738596648025,-500.0,0.00016575,2]
[351481453,1738596648035,-509.82669436,0.00016575,2]
[351481454,1738596648045,-500.0,0.00016575,2]
[351481455,1738596648055,-1066.72,0.00016575,2]
[351481456,1738596648068,-500.0,0.00016575,2]
[351481457,1738596648078,-500.0,0.00016575,2]
[351481458,1738596648089,-500.0,0.00016575,2]
[351481459,1738596648099,-500.0,0.00016575,2]
[351481460,1738596648110,-500.0,0.00016575,2]
[351481461,1738596648120,-503.68484362,0.00016575,2]
[351481462,1738596648131,-500.0,0.00016575,2]
[351481463,1738596648141,-843.67,0.00016575,2]
[351481464,1738596648152,-785.0,0.00016575,2]
[351481465,1738596648162,-500.0,0.00016575,2]
[351481466,1738596648173,-500.0,0.00016575,2]
[351481467,1738596648183,-507.7260653,0.00016575,2]
[351481468,1738596648194,-591.8474498,0.00016575,2]
[351481469,1738596648204,-639.55314656,0.00016575,2]
[351481470,1738596648214,-500.0,0.00016575,2]
[351481471,1738596648224,-500.0,0.00016575,2]
[351481472,1738596648234,-500.0,0.00016575,2]
[351481473,1738596648244,-500.0,0.00016575,2]
[351481474,1738596648256,-500.0,0.00016575,2]
[351481475,1738596648267,-500.0,0.00016575,2]
[351481476,1738596648277,-500.0,0.00016575,2]
[351481477,1738596648287,-500.0,0.00016575,2]
[351481478,1738596648297,-500.0,0.00016575,2]
[351481479,1738596648307,-500.0,0.00016575,2]
[351481480,1738596648321,-502.53856804,0.00016575,2]
[351481481,1738596648331,-2834.15,0.00016575,2]
[351481482,1738596648340,-288.44639347,0.00016575,2]
[351481483,1738596648350,-500.0,0.00016575,2]
[351481484,1738596648360,-500.0,0.00016575,2]
[351481485,1738596648370,-500.0,0.00016575,2]
[351481486,1738596648380,-781.55,0.00016575,2]
[351481487,1738596648390,-560.51,0.00016575,2]
[351481488,1738596648400,-151.0,0.00016575,2]
[351481490,1738596648411,-151.0,0.00016575,2]
[351481491,1738596648421,-151.0,0.00016575,2]
[351481493,1738596648431,-1578.48,0.00016575,2]
[351481494,1738596648441,-678.84,0.00016575,2]
[351481496,1738596648450,-362.99587984,0.00016575,2]
[351481497,1738596648460,-179.278603,0.00016575,2]
[351481498,1738596648470,-500.0,0.00016575,2]
[351481499,1738596648480,-500.0,0.00016575,2]
[351481500,1738596648490,-500.0,0.00016575,2]
[351481501,1738596648500,-643.44,0.00016575,2]
[351481502,1738596648510,-500.0,0.00016575,2]
[351481503,1738596648520,-500.0,0.00016575,2]
[351481504,1738596648530,-500.0,0.00016575,2]
[351481505,1738596648540,-571.84533616,0.00016575,2]
[351481507,1738596648549,-500.0,0.00016575,2]
[351481509,1738596648562,-620.77,0.00016575,2]
[351481511,1738596648573,-1017.68,0.00016575,2]
[351481513,1738596648587,-500.0,0.00016575,2]
[351481515,1738596648602,-2014.91,0.00016575,2]
[351481516,1738596648621,-500.0,0.00016575,2]
[351481517,1738596648636,-500.0,0.00016575,2]
[351481518,1738596648651,-500.0,0.00016575,2]
[351481519,1738596648666,-500.0,0.00016575,2]
[351481520,1738596648684,-3798.89,0.00016575,2]
[351481521,1738596648699,-500.0,0.00016575,2]
[351481522,1738596648714,-500.0,0.00016575,2]
[351481523,1738596648730,-500.0,0.00016575,2]
[351481524,1738596648744,-500.0,0.00016575,2]
[351481525,1738596648759,-350.90655895,0.00016575,2]
[351481526,1738596648776,-500.0,0.00016575,2]
[351481527,1738596648790,-556.68844514,0.00016575,2]
[351481528,1738596648802,-574.41,0.00016575,2]
[351481529,1738596648820,-500.0,0.00016575,2]
[351481530,1738596648834,-500.0,0.00016575,2]
[351481531,1738596648851,-500.0,0.00016575,2]
[351481532,1738596648867,-500.0,0.00016575,2]
[351481533,1738596648883,-500.0,0.00016575,2]
[351481534,1738596648899,-679.48,0.00016575,2]
[351481535,1738596648911,-500.0,0.00016575,2]
[351481536,1738596648925,-2536.97,0.00016575,2]
[351481537,1738596648943,-500.0,0.00016575,2]
[351481538,1738596648957,-500.0,0.00016575,2]
[351481539,1738596648970,-500.0,0.00016575,2]
[351481540,1738596648984,-271.52578439,0.00016575,2]
[351481541,1738596648999,-812.73,0.00016575,2]
[351481542,1738596649011,-500.0,0.00016575,2]
[351481543,1738596649025,-500.0,0.00016575,2]
[351481544,1738596649039,-500.0,0.00016575,2]
[351481545,1738596649052,-2112.41,0.00016575,2]
[351481546,1738596649068,-571.14,0.00016575,2]
[351481547,1738596649082,-151.0,0.00016575,2]
[351481548,1738596649096,-500.0,0.00016575,2]
[351481549,1738596649108,-151.0,0.00016575,2]
[351481550,1738596649121,-151.0,0.00016575,2]
[351481551,1738596649134,-500.0,0.00016575,2]
[351481552,1738596649148,-500.0,0.00016575,2]
[351481553,1738596649161,-500.0,0.00016575,2]
[351481554,1738596649174,-501.80625002,0.00016575,2]
[351481555,1738596649187,-1053.11,0.00016575,2]
[351481556,1738596649201,-285.089632,0.00016575,2]
[351481557,1738596649214,-285.089632,0.00016575,2]
[351481558,1738596649227,-500.0,0.00016575,2]
[351481559,1738596649240,-285.089632,0.00016575,2]
[351481560,1738596649252,-285.089632,0.00016575,2]
[351481561,1738596649266,-500.0,0.00016575,2]
[351481562,1738596649279,-500.0,0.00016575,2]
[351481563,1738596649292,-500.0,0.00016575,2]
[351481564,1738596649304,-581.05513982,0.00016575,2]
[351481565,1738596649321,-500.0,0.00016575,2]
[351481566,1738596649334,-817.09,0.00016575,2]
[351481567,1738596649348,-500.0,0.00016575,2]
[351481568,1738596649360,-2731.15825456,0.00016575,2]
[351481569,1738596649382,-500.72200008,0.00016575,2]
[351481570,1738596650012,-500.98277144,0.00016438,2]
[351481571,1738596650022,-2611.51722846,0.00016575,2]
[351481572,1738596650219,-500.0,0.00016438,2]
[351481573,1738596650230,-2198.2625169,0.00016575,2]
[351481574,1738596650240,-500.0,0.00016575,2]
[351481575,1738596650252,-701.35,0.00016575,2]
[351481576,1738596650265,-500.0,0.00016575,2]
[351481577,1738596650274,-500.0,0.00016575,2]
[351481578,1738596650284,-500.0,0.00016575,2]
[351481579,1738596650295,-507.83850901,0.00016575,2]
[351481580,1738596650304,-500.0,0.00016575,2]
[351481581,1738596650316,-500.0,0.00016575,2]
[351481582,1738596650326,-500.0,0.00016575,2]
[351481583,1738596650336,-493.45439239,0.00016575,2]
[351481584,1738596650346,-2963.82,0.00016575,2]
[351481585,1738596650356,-526.49335448,0.00016575,2]
[351481586,1738596650366,-7434.94140222,0.00016575,2]
[351481668,1738596975910,326.961624,0.00013973,2]
[351483064,1738597751122,189.911145,0.00013699,2]
[351483121,1738597832664,-8102.7739574,0.0001515,2]
[351483122,1738597832676,-443.2479123,0.00015352,2]
[351483123,1738597832687,-157.073,0.0001574,2]
[351483124,1738597832698,-700.0,0.00015972,2]
[351483125,1738597832709,-300.0,0.00015999,2]
[351483127,1738597832722,-48231.11614757,0.00016,2]
[351483128,1738597832733,-13257.15227901,0.000162,2]
[351483130,1738597832745,-6682.75085217,0.00016321,2]
[351483132,1738597832757,-181.35910405,0.00016338,2]
[351483134,1738597832768,-3000.0,0.00016338,2]
[351483136,1738597832779,-153.0,0.000164,2]
[351483138,1738597832790,-154.4720971,0.000164,2]
[351483140,1738597832801,-153.0,0.000164,2]
[351483142,1738597832812,-191.1480875,0.000164,2]
[351483144,1738597832824,-152.0,0.00016432,2]
[351483146,1738597832835,-318.89491144,0.00016437,2]
[351483148,1738597832846,-467.41305174,0.00016437,2]
[351483150,1738597832862,-500.0,0.00016437,2]
[351483152,1738597832873,-362.60953966,0.00016437,2]
[351483154,1738597832884,-500.0,0.00016437,2]
[351483156,1738597832896,-241.77101944,0.00016437,2]
[351483158,1738597832908,-236.2502632,0.00016437,2]
[351483160,1738597832918,-566.13492581,0.00016437,2]
[351483162,1738597832929,-500.0,0.00016437,2]
[351483164,1738597832940,-500.0,0.00016437,2]
[351483166,1738597832951,-500.0,0.00016437,2]
[351483168,1738597832961,-500.0,0.00016437,2]
[351483170,1738597832975,-300.0,0.00016437,2]
[351483172,1738597832985,-500.0,0.00016437,2]
[351483174,1738597832995,-500.0,0.00016437,2]
[351483176,1738597833006,-500.0,0.00016437,2]
[351483178,1738597833020,-500.0,0.00016437,2]
[351483180,1738597833031,-500.0,0.00016437,2]
[351483182,1738597833042,-500.0,0.00016437,2]
[351483184,1738597833053,-500.0,0.00016437,2]
[351483186,1738597833064,-500.0,0.00016437,2]
[351483188,1738597833074,-500.0,0.00016437,2]
[351483190,1738597833085,-633.42354415,0.00016437,2]
[351483192,1738597833096,-500.0,0.00016437,2]
[351483194,1738597833113,-500.0,0.00016437,2]
[351483196,1738597833125,-500.0,0.00016437,2]
[351483198,1738597833136,-500.0,0.00016437,2]
[351483200,1738597833147,-500.0,0.00016437,2]
[351483202,1738597833158,-500.0,0.00016437,2]
[351483204,1738597833169,-500.0,0.00016437,2]
[351483206,1738597833180,-151.0,0.00016438,2]
[351483208,1738597833191,-151.0,0.00016438,2]
[351483210,1738597833202,-500.0,0.00016438,2]
[351483212,1738597833214,-500.0,0.00016438,2]
[351483214,1738597833225,-501.22993,0.00016438,2]
[351483216,1738597833235,-638.61211102,0.00016438,2]
[351483218,1738597833246,-500.0,0.00016438,2]
[351483220,1738597833256,-473.66079443,0.00016438,2]
[351483222,1738597833266,-176.29711112,0.00016438,2]
[351483224,1738597833276,-500.0,0.00016438,2]
[351483226,1738597833287,-547.40715514,0.00016438,2]
[351483228,1738597833297,-500.0,0.00016438,2]
[351483230,1738597833307,-500.0,0.00016438,2]
[351483232,1738597833318,-500.0,0.00016438,2]
[351483234,1738597833333,-372.56220049,0.00016438,2]
[351483236,1738597833345,-500.0,0.00016438,2]
[351483238,1738597833362,-500.0,0.00016438,2]
[351483240,1738597833373,-500.0,0.00016438,2]
[351483242,1738597833383,-500.0,0.00016438,2]
[351483244,1738597833394,-490.32913366,0.00016438,2]
[351483246,1738597833404,-500.0,0.00016438,2]
[351483248,1738597833414,-500.0,0.00016438,2]
[351483250,1738597833427,-504.36582995,0.00016438,2]
[351483251,1738597833439,-500.0,0.00016438,2]
[351483253,1738597833449,-500.0,0.00016438,2]
[351483255,1738597833460,-500.0,0.00016438,2]
[351483258,1738597833471,-502.59485842,0.00016438,2]
[351483259,1738597833482,-500.0,0.00016438,2]
[351483262,1738597833492,-500.0,0.00016438,2]
[351483263,1738597833503,-500.0,0.00016438,2]
[351483265,1738597833514,-500.0,0.00016438,2]
[351483268,1738597833524,-500.0,0.00016438,2]
[351483269,1738597833534,-500.0,0.00016438,2]
[351483271,1738597833545,-500.0,0.00016438,2]
[351483274,1738597833556,-500.0,0.00016438,2]
[351483275,1738597833567,-500.0,0.00016438,2]
[351483278,1738597833578,-500.0,0.00016438,2]
[351483280,1738597833590,-500.0,0.00016438,2]
[351483282,1738597833600,-500.0,0.00016438,2]
[351483284,1738597833616,-503.03276632,0.00016438,2]
[351483286,1738597833626,-500.0,0.00016438,2]
[351483288,1738597833637,-500.0,0.00016438,2]
[351483289,1738597833647,-500.0,0.00016438,2]
[351483290,1738597833657,-500.0,0.00016438,2]
[351483291,1738597833669,-500.0,0.00016438,2]
[351483292,1738597833679,-500.0,0.00016438,2]
[351483293,1738597833690,-500.0,0.00016438,2]
[351483294,1738597833700,-500.0,0.00016438,2]
[351483295,1738597833710,-614.77392378,0.00016438,2]
[351483296,1738597833720,-500.0,0.00016438,2]
[351483297,1738597833730,-500.0,0.00016438,2]
[351483298,1738597833741,-500.0,0.00016438,2]
[351483299,1738597833751,-249.44772489,0.00016438,2]
[351483300,1738597833762,-595.63,0.00016438,2]
[351483301,1738597833772,-400.40049492,0.00016438,2]
[351483302,1738597833784,-500.0,0.00016438,2]
[351483303,1738597833795,-500.0,0.00016438,2]
[351483304,1738597833806,-500.0,0.00016438,2]
[351483305,1738597833816,-500.0,0.00016438,2]
[351483306,1738597833826,-500.0,0.00016438,2]
[351483307,1738597833837,-500.0,0.00016438,2]
[351483308,1738597833847,-500.0,0.00016438,2]
[351483310,1738597833997,-506.77403548,0.00016438,2]
[351483312,1738597834009,-500.0,0.00016438,2]
[351483314,1738597834024,-500.0,0.00016438,2]
[351483316,1738597834035,-401.42517882,0.00016438,2]
[351483319,1738597834046,-500.0,0.00016438,2]
[351483321,1738597834056,-500.0,0.00016438,2]
[351483323,1738597834066,-500.0,0.00016438,2]
[351483325,1738597834077,-500.0,0.00016438,2]
[351483326,1738597834087,-500.0,0.00016438,2]
[351483328,1738597834097,-602.5,0.00016438,2]
[351483330,1738597834111,-500.0,0.00016438,2]
[351483332,1738597834122,-500.0,0.00016438,2]
[351483334,1738597834132,-500.0,0.00016438,2]
[351483336,1738597834143,-506.64041338,0.00016438,2]
[351483338,1738597834154,-500.0,0.00016438,2]
[351483340,1738597834164,-1632.16,0.00016438,2]
[351483342,1738597834174,-470.89676566,0.00016438,2]
[351483344,1738597834184,-500.0,0.00016438,2]
[351483346,1738597834194,-500.0,0.00016438,2]
[351483348,1738597834205,-533.2391897,0.00016438,2]
[351483350,1738597834216,-500.0,0.00016438,2]
[351483352,1738597834226,-239.59642867,0.00016438,2]
[351483354,1738597834236,-503.62610359,0.00016438,2]
[351483356,1738597834247,-500.0,0.00016438,2]
[351483358,1738597834257,-500.0,0.00016438,2]
[351483360,1738597834267,-500.0,0.00016438,2]
[351483362,1738597834278,-500.0,0.00016438,2]
[351483364,1738597834288,-500.0,0.00016438,2]
[351483366,1738597834299,-585.24958813,0.00016438,2]
[351483368,1738597834309,-500.0,0.00016438,2]
[351483370,1738597834320,-500.0,0.00016438,2]
[351483372,1738597834331,-500.0,0.00016438,2]
[351483374,1738597834342,-500.0,0.00016438,2]
[351483376,1738597834353,-500.0,0.00016438,2]
[351483378,1738597834367,-500.0,0.00016438,2]
[351483381,1738597834378,-502.10317341,0.00016438,2]
[351483383,1738597834390,-500.0,0.00016438,2]
[351483385,1738597834400,-852.73,0.00016438,2]
[351483387,1738597834411,-500.0,0.00016438,2]
[351483389,1738597834422,-500.0,0.00016438,2]
[351483391,1738597834433,-500.0,0.00016438,2]
[351483393,1738597834443,-500.0,0.00016438,2]
[351483395,1738597834454,-562.77,0.00016438,2]
[351483396,1738597834465,-504.03436663,0.00016438,2]
[351483398,1738597834476,-500.0,0.00016438,2]
[351483401,1738597834488,-1000.0,0.00016438,2]
[351483403,1738597834499,-481.71427054,0.00016438,2]
[351483404,1738597834509,-500.0,0.00016438,2]
[351483407,1738597834520,-500.0,0.00016438,2]
[351483409,1738597834532,-500.0,0.00016438,2]
[351483411,1738597834543,-500.0,0.00016438,2]
[351483412,1738597834555,-502.10007293,0.00016438,2]
[351483414,1738597834566,-500.0,0.00016438,2]
[351483416,1738597834576,-500.0,0.00016438,2]
[351483418,1738597834587,-502.14953178,0.00016438,2]
[351483420,1738597834597,-500.0,0.00016438,2]
[351483422,1738597834614,-500.0,0.00016438,2]
[351483424,1738597834624,-500.0,0.00016438,2]
[351483426,1738597834635,-500.0,0.00016438,2]
[351483428,1738597834646,-500.0,0.00016438,2]
[351483431,1738597834658,-500.0,0.00016438,2]
[351483433,1738597834669,-612.17241693,0.00016438,2]
[351483435,1738597834679,-500.0,0.00016438,2]
[351483436,1738597834689,-500.0,0.00016438,2]
[351483438,1738597834700,-524.11594183,0.00016438,2]
[351483440,1738597834711,-500.0,0.00016438,2]
[351483443,1738597834722,-500.0,0.00016438,2]
[351483444,1738597834733,-500.0,0.00016438,2]
[351483446,1738597834743,-547.37,0.00016438,2]
[351483448,1738597834754,-500.0,0.00016438,2]
[351483450,1738597834764,-500.0,0.00016438,2]
[351483453,1738597834775,-663.17,0.00016438,2]
[351483455,1738597834786,-500.0,0.00016438,2]
[351483457,1738597834796,-500.0,0.00016438,2]
[351483459,1738597834806,-504.87196526,0.00016438,2]
[351483461,1738597834817,-500.0,0.00016438,2]
[351483463,1738597834827,-500.0,0.00016438,2]
[351483465,1738597834837,-500.0,0.00016438,2]
[351483467,1738597834847,-500.0,0.00016438,2]
[351483468,1738597834861,-500.81951843,0.00016438,2]
[351483470,1738597834871,-500.0,0.00016438,2]
[351483472,1738597834881,-500.0,0.00016438,2]
[351483474,1738597834891,-246.30302389,0.00016438,2]
[351483476,1738597834901,-500.0,0.00016438,2]
[351483478,1738597834911,-500.0,0.00016438,2]
[351483480,1738597834922,-500.0,0.00016438,2]
[351483482,1738597834933,-500.0,0.00016438,2]
[351483484,1738597834943,-500.0,0.00016438,2]
[351483486,1738597834954,-500.0,0.00016438,2]
[351483488,1738597834966,-500.0,0.00016438,2]
[351483490,1738597834982,-500.0,0.00016438,2]
[351483492,1738597834992,-500.0,0.00016438,2]
[351483494,1738597835002,-550.24,0.00016438,2]
[351483496,1738597835012,-500.0,0.00016438,2]
[351483497,1738597835023,-500.0,0.00016438,2]
[351483499,1738597835035,-500.0,0.00016438,2]
[351483502,1738597835046,-500.0,0.00016438,2]
[351483503,1738597835056,-500.0,0.00016438,2]
[351483505,1738597835068,-500.0,0.00016438,2]
[351483507,1738597835078,-500.0,0.00016438,2]
[351483509,1738597835088,-500.0,0.00016438,2]
[351483512,1738597835098,-417.40543914,0.00016438,2]
[351483514,1738597835113,-808.52,0.00016438,2]
[351483516,1738597835124,-506.86842485,0.00016438,2]
[351483518,1738597835134,-500.0,0.00016438,2]
[351483520,1738597835144,-500.0,0.00016438,2]